bitfinex/quotes_ETHUSD_20220226
["timestamp","ask_amount","ask_price","bid_price","bid_amount"]
[1645851156732,0.1416,2821.9,2821.1,0.00842858]
[1645851156932,0.1416,2821.9,2821.1,0.00520227]
[1645851157175,0.1416,2821.9,2821.1,0.00842858]
[1645851157383,1.41046911,2821.7,2821.1,0.00842858]
[1645851157581,1.41046911,2821.7,2821.0,8.11255081]
[1645851157780,1.41046911,2821.7,2821.1,0.00520227]
[1645851158385,0.16495272,2821.8,2821.1,0.00520227]
[1645851158581,0.1416,2821.9,2821.2,0.07488763]
[1645851158782,0.1416,2821.9,2821.3,0.07488763]
[1645851158981,0.1416,2821.9,2821.0,8.11166732]
[1645851159181,0.1416,2821.9,2821.1,0.0781127]
[1645851159382,0.1416,2821.9,2821.1,0.07488639]
[1645851159585,1.23923788,2821.8,2821.1,0.0781127]
[1645851159784,1.23923788,2821.8,2821.1,0.07488639]
[1645851160182,0.3007966,2821.9,2821.1,0.07488639]
[1645851160385,0.5293023,2822.1,2821.1,3.9326127]
[1645851160584,0.5293023,2822.1,2821.2,0.0781127]
[1645851162730,0.00520091,2821.8,2821.2,0.0781127]
[1645851163631,0.5293023,2822.1,2821.2,0.0781127]
[1645851163828,0.00520082,2821.8,2821.2,0.0781127]
[1645851164771,0.45978289,2822.1,2821.2,0.0781127]
[1645851165173,0.00520082,2821.8,2821.2,0.0781127]
[1645851165572,0.00520082,2821.8,2821.2,0.00322631]
[1645851165773,0.00520082,2821.8,2821.3,0.07488639]
[1645851166071,0.48058457,2822.1,2821.4,0.07488639]
[1645851166072,0.45978289,2822.1,2821.4,0.07488639]
[1645851166275,0.45978289,2822.1,2821.5,0.07488639]
[1645851166472,0.45978289,2822.1,2821.6,0.07488639]
[1645851166673,0.45978289,2822.1,2821.7,0.07488639]
[1645851166876,0.45978289,2822.1,2821.2,0.73748038]
[1645851167074,0.45978289,2822.1,2821.3,0.07488639]
[1645851167275,0.45978289,2822.1,2821.4,0.07488639]
[1645851167476,0.00520071,2822.0,2821.3,0.00842842]
[1645851167776,0.00520071,2822.0,2821.4,0.07488639]
[1645851168422,0.45978289,2822.1,2821.4,0.07488639]
[1645851168619,0.00478753,2821.9,2821.5,0.07488639]
[1645851168824,0.00478753,2821.9,2821.6,0.07488639]
[1645851169023,0.00478753,2821.9,2821.7,0.07488639]
[1645851169223,0.00478753,2821.9,2821.8,0.07488639]
[1645851169523,0.45978289,2822.1,2821.8,0.07488639]
[1645851169725,0.45978289,2822.1,2821.9,0.07488639]
[1645851169924,0.0047877,2822.0,2821.3,0.66749884]
[1645851170124,0.0047877,2822.0,2821.4,0.07487677]
[1645851170924,0.45978289,2822.1,2821.4,0.07487677]
[1645851171126,1.11031065,2821.8,2821.5,0.07487677]
[1645851171328,1.11031065,2821.8,2821.6,0.07487677]
[1645851171524,1.11031065,2821.8,2821.7,0.07487899]
[1645851171726,0.1833252,2821.9,2821.3,0.07487899]
[1645851171925,0.00478753,2821.9,2821.4,0.07487899]
[1645851172185,0.1416,2822.0,2821.5,0.07487899]
[1645851172387,0.1416,2822.0,2821.6,0.07487899]
[1645851172589,0.1416,2822.0,2821.7,0.07487899]
[1645851172788,1.2306019,2821.9,2821.8,0.07487899]
[1645851172989,1.2306019,2821.9,2821.1,0.95408608]
[1645851173590,1.2306019,2821.9,2821.2,0.07487899]
[1645851173591,1.3722019,2821.9,2821.2,0.07487899]
[1645851173790,1.3722019,2821.9,2821.3,0.07487899]
[1645851173791,1.8832019,2821.9,2821.3,0.07487899]
[1645851173993,2.2377019,2821.9,2821.4,0.07487899]
[1645851174191,1.80698135,2821.8,2821.5,0.07487899]
[1645851174390,1.45248449,2821.7,2821.6,0.07487899]
[1645851174588,1.26569595,2821.4,2821.0,7.67742595]
[1645851174996,0.18660085,2821.5,2821.0,7.67742595]
[1645851175293,0.35596301,2821.8,2821.0,7.67742595]
[1645851175694,0.3545,2821.8,2821.0,7.67742595]
[1645851175939,0.00487621,2821.7,2821.1,0.0049318]
[1645851176130,1.17844656,2821.7,2821.1,0.0049318]
[1645851176330,0.00487621,2821.7,2821.1,0.0049318]
[1645851176931,0.1416,2822.0,2821.0,8.55663304]
[1645851177130,0.1416,2822.0,2821.2,0.00503736]
[1645851177131,0.00503644,2821.7,2821.2,0.00503736]
[1645851177532,0.00503644,2821.7,2821.2,0.38424445]
[1645851178131,0.45978289,2822.1,2821.2,0.38424445]
[1645851179975,0.45978289,2822.1,2821.1,0.0032107]
[1645851180577,0.45978289,2822.1,2821.0,10.7404933]
[1645851180782,0.00520108,2821.7,2821.1,0.00520234]
[1645851181582,1.2812675,2821.8,2821.5,0.6623961]
[1645851181782,0.19514725,2821.9,2821.4,0.6623961]
[1645851181982,0.00520132,2821.5,2821.4,0.6623961]
[1645851182581,0.00520132,2821.5,2821.3,0.6623961]
[1645851182885,1.1404862,2821.8,2821.4,0.6623961]
[1645851183087,0.00520126,2821.6,2821.2,0.6623961]
[1645851183558,0.511,2821.5,2821.1,0.66759834]
[1645851183758,1.36620463,2821.3,2821.1,0.66759834]
[1645851183958,0.18638814,2821.4,2821.1,0.6623961]
[1645851184158,0.511,2821.5,2821.0,8.33982205]
[1645851184362,0.51620136,2821.5,2821.1,0.66759825]
[1645851184758,0.32955714,2821.5,2821.1,0.66759825]
[1645851185161,0.32435578,2821.5,2821.0,8.33982205]
[1645851185360,1.34459735,2821.3,2821.0,8.33982205]
[1645851185562,1.34459735,2821.3,2821.1,0.00520215]
[1645851185964,0.20139175,2821.4,2821.1,0.00520215]
[1645851186260,0.32955714,2821.5,2821.1,0.00520215]
[1645851186461,0.32435578,2821.5,2821.0,8.33982205]
[1645851186661,0.32955711,2821.5,2821.1,0.00520212]
[1645851187680,0.32435578,2821.5,2821.0,8.33982205]
[1645851187884,0.32955714,2821.5,2821.1,0.61759825]
[1645851188683,0.68405714,2821.5,2821.1,0.61759825]
[1645851188881,0.32435578,2821.5,2821.1,0.6123961]
[1645851189082,0.32955321,2821.5,2821.1,0.61759431]
[1645851189282,0.00519743,2821.5,2821.1,0.61759431]
[1645851189485,0.00519743,2821.5,2821.1,0.00519821]
[1645851190081,0.4961,2821.8,2821.0,7.67742595]
[1645851190283,0.00519743,2821.5,2821.1,0.00519821]
[1645851191333,0.1416,2821.8,2821.0,7.67742595]
[1645851191531,0.00519743,2821.5,2821.1,0.00519821]
[1645851192431,0.3545,2821.8,2821.0,7.67742595]
[1645851192730,0.69904041,2821.9,2821.1,0.00520215]
[1645851192731,0.00520136,2821.5,2821.1,0.00520215]
[1645851192931,0.00520136,2821.5,2821.1,0.00839787]
[1645851193132,0.00520136,2821.5,2821.1,0.00520215]
[1645851193632,0.45978289,2822.1,2821.0,8.56086807]
[1645851193832,0.3545,2822.0,2821.1,0.00319572]
[1645851194134,0.00520136,2821.5,2821.1,0.00839787]
[1645851194333,0.00520136,2821.5,2821.1,0.00520215]
[1645851194535,0.00520136,2821.5,2821.2,0.07488565]
[1645851194785,0.48058391,2822.1,2821.3,0.88344212]
[1645851194786,0.45978289,2822.1,2821.3,0.88344212]
[1645851194982,0.45978289,2822.1,2821.3,0.95832777]
[1645851195183,0.00520136,2821.5,2821.4,0.07488565]
[1645851195584,0.00520136,2821.5,2821.3,0.88344212]
[1645851196085,2.70914537,2822.3,2821.3,0.88344212]
[1645851196285,0.00520132,2821.5,2821.3,0.88344212]
[1645851197185,2.70914537,2822.3,2821.3,0.88344212]
[1645851197387,0.00520132,2821.5,2821.3,0.88344212]
[1645851198435,2.85074537,2822.3,2821.3,0.88344212]
[1645851198630,0.00520132,2821.5,2821.3,0.88344212]
[1645851199734,2.85074537,2822.3,2821.3,0.88344212]
[1645851199938,2.85074537,2822.3,2821.6,0.66248647]
[1645851199939,0.02020857,2822.1,2821.6,0.66248647]
[1645851200135,1.41374361,2821.7,2821.6,0.66248647]
[1645851200334,0.16027598,2821.8,2821.6,0.66248647]
[1645851200534,0.02020857,2822.1,2821.6,0.66248647]
[1645851200935,2.13725956,2822.3,2821.6,0.66248647]
[1645851201234,0.00505275,2821.8,2821.7,0.07488565]
[1645851201434,1.10344924,2821.8,2821.7,0.07488565]
[1645851201634,1.10344924,2821.8,2821.4,0.66248647]
[1645851202035,1.09839649,2821.8,2821.4,0.66248647]
[1645851202275,1.09839649,2821.8,2821.4,0.07488565]
[1645851202483,1.09839649,2821.8,2821.2,0.00319572]
[1645851202484,0.3545,2821.6,2821.2,0.00319572]
[1645851202677,0.3545,2821.6,2821.1,0.0050541]
[1645851203176,1.84856265,2821.5,2821.1,0.0050541]
[1645851203376,0.21773896,2821.4,2820.9,0.00319572]
[1645851203578,0.3559499,2821.5,2820.9,0.00319572]
[1645851204079,0.0014499,2821.5,2820.9,0.00319572]
[1645851204278,1.84988986,2821.5,2820.9,0.00319572]
[1645851204477,0.3545,2821.5,2820.9,0.00319572]
[1645851204676,0.35594986,2821.5,2820.9,0.00319572]
[1645851205478,1.44439698,2821.1,2820.9,0.00319572]
[1645851205678,0.58218477,2821.5,2820.7,0.88663784]
[1645851205950,0.58363463,2821.5,2820.8,0.00319572]
[1645851206343,1.84828663,2821.4,2820.8,0.00319572]
[1645851206543,11.1745,2821.4,2820.8,0.00319572]
[1645851206743,0.53901332,2821.5,2821.0,6.75836046]
[1645851206744,1.0,2821.1,2821.0,6.75836046]
[1645851206948,15.5039733,2821.1,2821.0,5.89043108]
[1645851207143,15.6455733,2821.1,2821.0,5.89043108]
[1645851207644,15.6455733,2821.1,2821.0,5.39043108]
[1645851208245,15.6455733,2821.1,2820.8,0.00319572]
[1645851208246,15.6455733,2821.1,2820.9,0.00475528]
[1645851208442,15.6455733,2821.1,2819.5,2.33770357]
[1645851208443,0.15136704,2820.8,2819.9,0.88344212]
[1645851208644,11.8273,2820.7,2819.8,3.64214212]
[1645851208846,0.20954873,2820.6,2819.8,3.64214212]
[1645851209044,0.20954873,2820.6,2819.8,0.88344212]
[1645851209045,11.3163,2820.5,2819.8,0.88344212]
[1645851209243,0.3545,2820.3,2819.8,0.88344212]
[1645851209445,0.3545,2820.1,2819.8,0.88344212]
[1645851209675,0.55634171,2820.1,2819.6,0.88344212]
[1645851210077,1.25531939,2819.7,2819.6,0.88344212]
[1645851210477,0.65141403,2819.7,2819.6,0.38344212]
[1645851210882,0.1418,2820.0,2819.6,0.38344212]
[1645851211083,6.29223914,2820.8,2819.6,0.38344212]
[1645851211084,0.511,2820.4,2819.6,0.38344212]
[1645851211383,0.53603914,2820.8,2819.7,3.5]
[1645851211587,0.53603914,2820.8,2819.6,0.3545]
[1645851211884,1.30745608,2820.5,2819.5,3.54274665]
[1645851213085,1.30745608,2820.5,2819.9,0.00519954]
[1645851213530,1.30745608,2820.5,2819.5,3.04794619]
[1645851213728,1.30745608,2820.5,2819.5,2.04794619]
[1645851213926,1.30745608,2820.5,2819.5,3.04794619]
[1645851214127,1.30745608,2820.5,2819.5,3.40244619]
[1645851214527,1.30745608,2820.5,2819.6,0.00318291]
[1645851216634,1.30745608,2820.5,2819.5,1.5511291]
[1645851216835,1.30745608,2820.5,2819.5,2.31904665]
[1645851217036,1.30745608,2820.5,2819.5,1.31904665]
[1645851217976,1.30745608,2820.5,2819.8,0.00519973]
[1645851218179,0.17268158,2820.6,2819.8,0.00519973]
[1645851218375,0.1418,2820.7,2819.8,0.00519973]
[1645851218973,0.1418,2820.7,2819.6,0.3545]
[1645851219174,1.36589762,2820.3,2819.8,0.00519988]
[1645851219575,1.36589762,2820.3,2819.8,0.88660078]
[1645851219778,1.36589762,2820.3,2819.8,0.00519988]
[1645851220181,1.36589762,2820.3,2819.7,0.8814009]
[1645851220378,1.36589762,2820.3,2819.8,0.00519976]
[1645851221231,0.18843361,2820.4,2819.7,0.8814009]
[1645851221632,0.1418,2820.7,2819.8,0.00519976]
[1645851222433,1.40347399,2820.7,2819.7,0.8814009]
[1645851222835,4.90347399,2820.7,2819.8,0.00519988]
[1645851223236,5.90347399,2820.7,2819.8,0.00519988]
[1645851223440,5.76167399,2820.7,2819.8,0.00519988]
[1645851223638,5.76167399,2820.7,2819.8,0.00316744]
[1645851223838,4.76167399,2820.7,2819.8,0.00316744]
[1645851224037,1.26167399,2820.7,2819.8,0.88976822]
[1645851224236,4.76167399,2820.7,2819.8,0.00836732]
[1645851224983,4.76167399,2820.7,2819.8,0.00316744]
[1645851225184,4.76167399,2820.7,2819.8,0.00836732]
[1645851225388,1.26167399,2820.7,2819.8,0.00836732]
[1645851225584,4.76167399,2820.7,2819.8,0.00836732]
[1645851225784,1.402551,2820.2,2819.8,0.00836732]
[1645851226092,1.402551,2820.2,2819.7,0.8814009]
[1645851226498,1.402551,2820.2,2819.8,0.00519988]
[1645851227294,1.402551,2820.2,2819.5,0.8814009]
[1645851227692,1.402551,2820.2,2819.8,0.00519973]
[1645851228528,1.402551,2820.2,2819.6,0.00316744]
[1645851228529,1.544351,2820.2,2819.6,0.00316744]
[1645851228731,1.544351,2820.2,2819.4,0.88456834]
[1645851228935,1.16417757,2819.7,2819.4,0.88456834]
[1645851229133,3.5,2820.1,2819.3,2.0798009]
[1645851229333,0.1418,2820.2,2819.4,0.8814009]
[1645851229934,0.1418,2820.2,2819.3,0.8814009]
[1645851230135,0.1418,2820.2,2819.4,0.00316744]
[1645851230335,1.26752865,2819.9,2819.4,0.00316744]
[1645851230536,1.26752865,2819.9,2819.2,0.00316744]
[1645851230537,1.37295906,2819.4,2819.2,0.00316744]
[1645851230834,1.58295961,2819.4,2819.0,0.88456834]
[1645851231037,1.58295961,2819.4,2819.0,0.8814009]
[1645851231241,0.21000055,2819.4,2818.8,0.88456834]
[1645851231539,4.5,2819.8,2818.8,0.88456834]
[1645851232378,4.5,2819.8,2818.8,0.00316744]
[1645851232379,1.0,2819.7,2818.8,0.00316744]
[1645851232679,1.19111228,2819.5,2818.8,0.00316744]
[1645851232879,0.15851091,2819.6,2818.8,0.00316744]
[1645851233079,4.027393,2819.8,2818.8,0.00316744]
[1645851233281,0.527393,2819.8,2818.8,1.23906834]
[1645851233480,0.527393,2819.8,2818.8,1.53906834]
[1645851233684,0.527393,2819.8,2819.1,0.00510264]
[1645851234079,1.56258212,2819.8,2819.1,0.00510264]
[1645851234680,0.527393,2819.8,2818.8,0.38456834]
[1645851234983,4.027393,2819.8,2818.8,0.38456834]
[1645851235383,1.527393,2819.8,2818.8,0.38456834]
[1645851235583,5.027393,2819.8,2818.8,0.00316744]
[1645851236236,1.29221881,2819.3,2818.8,0.00316744]
[1645851236439,5.027393,2819.8,2818.7,4.0427]
[1645851236638,5.027393,2819.8,2818.7,4.04586744]
[1645851236839,5.027393,2819.8,2818.8,0.00316744]
[1645851237644,5.027393,2819.8,2818.7,4.0427]
[1645851237645,1.13895056,2819.4,2818.7,3.04586744]
[1645851237843,1.13895056,2819.4,2818.6,0.64639173]
[1645851237844,1.1109754,2818.9,2818.6,0.34639173]
[1645851238046,3.5,2819.3,2818.4,1.2019]
[1645851238244,0.17720156,2819.4,2818.1,9.5296332]
[1645851238245,0.17574732,2819.4,2818.1,9.5296332]
[1645851238444,3.9964,2819.6,2818.9,0.00508462]
[1645851238644,1.0,2819.5,2818.9,0.00508462]
[1645851238844,3.5,2819.4,2818.9,0.00508462]
[1645851239048,1.26530369,2819.0,2818.9,0.00508462]
[1645851239445,1.26530369,2819.0,2818.1,0.8872332]
[1645851239689,1.26530369,2819.0,2818.2,0.02034368]
[1645851239690,4.76530369,2819.0,2818.2,0.02034368]
[1645851239889,3.8545,2819.0,2818.2,0.02034368]
[1645851240092,0.1419,2818.9,2818.2,0.02034368]
[1645851240694,0.1419,2818.9,2818.0,2.8887]
[1645851240695,4.60389594,2819.0,2818.0,2.3887]
[1645851240895,4.60389594,2819.0,2818.4,0.00489966]
[1645851241094,1.0392656,2818.5,2818.4,0.00489966]
[1645851241494,0.16213045,2818.6,2818.4,0.00489966]
[1645851241697,4.51923128,2819.0,2817.9,1.2268]
[1645851242094,4.51923128,2819.0,2818.3,0.00489978]
[1645851242395,3.5,2818.9,2818.3,0.00489978]
[1645851242593,0.1419,2818.8,2818.3,0.00489978]
[1645851242801,1.74842249,2818.5,2818.3,0.00489978]
[1645851242995,1.74842249,2818.5,2817.8,0.25]
[1645851242996,3.5,2818.4,2817.8,0.25]
[1645851243195,3.5,2818.4,2817.5,10.6227]
[1645851243196,1.27506735,2818.0,2817.5,10.6227]
[1645851243442,1.27506735,2818.0,2817.5,7.45]
[1645851243840,3.5,2817.9,2817.2,2.13055349]
[1645851244044,3.5,2817.9,2817.2,1.2498]
[1645851244644,3.5,2817.9,2817.4,0.00491583]
[1645851244842,1.27388429,2817.5,2817.4,0.00491583]
[1645851245246,1.62838429,2817.5,2817.4,0.00491583]
[1645851245443,1.62838429,2817.5,2817.1,0.25]
[1645851245644,1.62838429,2817.5,2817.0,0.00315722]
[1645851245844,1.62838429,2817.5,2816.7,0.00315722]
[1645851246045,0.3545,2817.5,2816.7,0.00315722]
[1645851246350,0.3545,2817.3,2816.7,0.00315722]
[1645851246548,3.9964,2817.2,2816.6,0.5]
[1645851246748,0.4964,2817.2,2816.6,0.5]
[1645851247291,3.5,2817.1,2816.9,0.00492949]
[1645851247494,0.4964,2817.2,2816.9,0.00492949]
[1645851247992,0.3545,2817.2,2816.9,0.00492949]
[1645851248194,0.1419,2817.6,2816.7,0.00315722]
[1645851248195,0.19571727,2817.5,2816.7,0.00315722]
[1645851248392,1.06054455,2817.5,2816.9,0.00492943]
[1645851249192,1.41504455,2817.5,2816.7,0.00315722]
[1645851249396,1.41504455,2817.5,2816.4,0.00315722]
[1645851249397,1.06054455,2817.5,2816.4,0.00315722]
[1645851249592,1.06054455,2817.5,2817.1,0.00474701]
[1645851250192,0.30438134,2817.6,2817.1,0.00474701]
[1645851250392,0.1419,2817.6,2816.4,0.00315722]
[1645851250793,0.1419,2817.6,2817.2,0.0047469]
[1645851251237,1.03073408,2817.4,2817.2,0.0047469]
[1645851251638,0.33508477,2817.7,2816.4,0.00315722]
[1645851251841,0.04180823,2817.7,2817.2,0.00455977]
[1645851252542,1.3545,2817.3,2817.2,0.00455977]
[1645851252740,1.3545,2817.3,2816.4,0.00315722]
[1645851252741,4.8545,2817.3,2816.4,0.00315722]
[1645851252941,1.2743319,2817.0,2816.4,0.00315722]
[1645851253239,1.08924991,2816.5,2816.1,0.00315722]
[1645851253440,1.08924991,2816.5,2815.9,0.00315722]
[1645851253640,1.08924991,2816.5,2815.7,0.00315722]
[1645851254441,1.08924991,2816.5,2816.0,0.00312339]
[1645851255184,1.08924991,2816.5,2815.7,0.00315722]
[1645851255684,1.08924991,2816.5,2816.1,0.00459478]
[1645851256489,1.08924991,2816.5,2815.7,0.00315722]
[1645851257088,4.58924991,2816.5,2815.7,0.00315722]
[1645851257295,1.0,2816.2,2815.7,0.00315722]
[1645851257494,5.58924991,2816.5,2815.4,0.00315722]
[1645851257693,1.22621745,2815.9,2815.4,0.00315722]
[1645851257892,1.22621745,2815.9,2815.5,0.0183759]
[1645851257893,0.73292811,2815.9,2815.5,0.0183759]
[1645851258095,3.5,2815.8,2815.5,0.0183759]
[1645851258295,4.5676,2815.8,2815.5,0.0183759]
[1645851258749,4.7095,2815.8,2814.7,3.25403312]
[1645851258949,1.2595,2815.8,2814.7,3.25403312]
[1645851259349,4.7595,2815.8,2814.7,3.25403312]
[1645851259550,1.2595,2815.8,2814.7,3.15403312]
[1645851259854,0.89336974,2815.9,2815.5,0.00476763]
[1645851259855,0.73292811,2815.9,2815.5,0.00476763]
[1645851260050,0.3545,2816.1,2815.5,0.00476763]
[1645851260552,0.3545,2816.1,2814.7,4.12787412]
[1645851260751,3.81194318,2816.2,2814.7,4.42787412]
[1645851260752,4.16644318,2816.2,2814.7,4.42787412]
[1645851260950,3.9964,2816.2,2814.7,4.42787412]
[1645851261553,1.19307284,2816.0,2815.0,0.3882]
[1645851261750,0.00177793,2815.6,2815.0,0.3882]
[1645851262200,0.00177793,2815.6,2814.7,4.42787412]
[1645851263002,0.00177793,2815.3,2814.7,4.42787412]
[1645851263201,0.00177793,2815.3,2814.7,4.30403312]
[1645851263603,0.00177793,2815.3,2814.7,3.00403312]
[1645851263904,1.0,2814.9,2814.6,2.9365]
[1645851264105,0.1421,2815.3,2814.5,7.45]
[1645851264704,0.1421,2815.3,2814.5,6.95]
[1645851265607,0.1421,2815.3,2814.8,0.00341922]
[1645851266027,3.9966,2815.3,2814.8,0.00341922]
[1645851266827,4.00179731,2815.3,2814.9,0.005198]
[1645851267028,0.50179731,2815.3,2814.9,0.005198]
[1645851267233,0.35969731,2815.3,2814.9,0.005198]
[1645851267636,0.35969731,2815.3,2814.2,3.87304191]
[1645851267833,3.85969731,2815.3,2814.2,3.87304191]
[1645851268032,3.85969734,2815.3,2815.0,0.00519794]
[1645851268232,0.35969734,2815.3,2815.0,0.00519794]
[1645851268635,0.00519734,2815.3,2815.0,0.00519794]
[1645851269336,3.2497,2816.1,2814.3,1.1655]
[1645851269337,4.4029,2816.1,2814.3,1.1655]
[1645851269535,4.5449,2816.1,2814.5,0.3545]
[1645851269788,1.2820624,2815.9,2814.5,0.6545]
[1645851270391,0.20895212,2816.0,2814.8,0.3545]
[1645851270692,4.4029,2816.1,2814.8,0.6545]
[1645851271292,1.1532,2816.1,2814.8,0.6545]
[1645851271492,1.1532,2816.1,2814.8,1.1655]
[1645851271690,0.00483339,2815.6,2814.8,1.1655]
[1645851272494,2.22665691,2816.1,2814.8,1.1655]
[1645851272697,0.00483366,2815.3,2814.8,1.1655]
[1645851273559,3.7458,2816.3,2814.8,1.1655]
[1645851273756,1.40882053,2816.0,2814.8,1.1655]
[1645851273956,0.00505052,2815.2,2814.8,1.1655]
[1645851274162,0.00305474,2815.2,2814.8,1.1655]
[1645851274557,0.00305474,2815.2,2814.8,0.8655]
[1645851274758,1.0,2815.9,2814.8,0.8655]
[1645851274960,4.6419,2815.9,2814.9,0.00313221]
[1645851275660,0.1419,2815.8,2814.9,0.00313221]
[1645851276859,1.32201378,2815.5,2814.9,0.00313221]
[1645851277185,0.1419,2815.8,2814.7,7.45313221]
[1645851277382,1.0,2815.9,2814.8,0.00313221]
[1645851277986,1.1552069,2815.6,2814.8,0.00313221]
[1645851278485,0.18696628,2815.7,2814.8,0.00313221]
[1645851278685,1.0,2815.9,2814.8,0.00313221]
[1645851278884,0.0051973,2815.3,2814.8,0.00313221]
[1645851279084,0.0051973,2815.3,2814.7,8.45]
[1645851279686,1.0,2815.9,2814.7,8.45]
[1645851279687,1.05963278,2815.7,2814.7,8.45]
[1645851279886,0.00519729,2815.3,2814.8,0.00313221]
[1645851280086,0.00519729,2815.3,2814.7,8.45]
[1645851280935,1.05963278,2815.7,2814.7,8.45]
[1645851281136,0.00519729,2815.3,2814.8,0.00313221]
[1645851281338,0.00519729,2815.3,2814.7,8.45]
[1645851282140,1.05963278,2815.7,2814.7,8.45]
[1645851282341,0.00519729,2815.3,2814.8,0.00313221]
[1645851282542,0.00519729,2815.3,2814.7,8.45]
[1645851283243,1.941877,2815.7,2814.7,8.45]
[1645851283440,0.00519729,2815.3,2814.8,0.00313221]
[1645851283640,0.00519729,2815.3,2814.7,8.45]
[1645851284541,1.55603278,2815.7,2814.7,8.45]
[1645851284782,1.55603278,2815.7,2814.8,0.00313221]
[1645851286388,2.0974767,2815.7,2814.8,0.00313221]
[1645851287290,0.00520017,2815.4,2814.8,0.00313221]
[1645851288089,1.0,2815.9,2814.8,0.00313221]
[1645851288295,0.00520028,2815.3,2814.8,0.00313221]
[1645851288534,0.00520028,2815.3,2814.7,9.6382521]
[1645851288733,0.00520028,2815.3,2814.7,9.9927521]
[1645851289337,1.0,2815.8,2814.7,9.6382521]
[1645851289536,0.00520022,2815.3,2814.8,0.00313221]
[1645851289736,0.00520022,2815.3,2814.7,8.75]
[1645851290536,1.24496281,2815.6,2814.7,8.75]
[1645851290737,0.00520022,2815.3,2814.7,8.75313221]
[1645851290940,0.00520022,2815.3,2814.8,0.00313221]
[1645851291237,0.00520022,2815.3,2814.7,8.75]
[1645851291640,3.5,2815.7,2814.7,8.75]
[1645851291841,1.09399259,2815.6,2814.8,0.00313221]
[1645851292042,0.00520022,2815.3,2814.8,0.00313221]
[1645851292291,0.00520022,2815.3,2814.7,8.75]
[1645851292500,0.00520022,2815.3,2814.7,8.65]
[1645851292893,1.44849259,2815.6,2814.7,8.65]
[1645851293091,0.00520022,2815.3,2814.7,8.65313221]
[1645851293291,0.00520022,2815.3,2814.7,8.45313221]
[1645851293891,1.08711998,2815.1,2814.7,8.45313221]
[1645851294093,0.17154829,2815.2,2814.7,8.45]
[1645851294394,0.00520022,2815.3,2814.7,8.45]
[1645851294594,0.00520022,2815.3,2814.7,8.45313221]
[1645851294791,0.00520022,2815.3,2814.7,8.45]
[1645851295291,1.12364934,2815.3,2814.7,8.45]
[1645851295491,1.12884956,2815.3,2814.7,8.45]
[1645851295692,3.85970022,2815.3,2814.7,7.45]
[1645851295940,1.3545,2815.1,2814.7,7.45]
[1645851296240,1.3545,2815.1,2814.4,0.00313221]
[1645851296637,3.8545,2815.0,2814.3,2.132]
[1645851296837,1.3545,2815.1,2814.2,0.00833428]
[1645851297038,1.52224048,2815.1,2814.2,0.00833428]
[1645851297244,1.3545,2815.1,2814.2,0.00833428]
[1645851297444,1.3545,2815.1,2814.3,0.88075349]
[1645851297843,1.14449834,2814.7,2814.3,0.88075349]
[1645851299543,1.14449834,2814.7,2814.4,0.88075349]
[1645851300389,3.8545,2814.6,2814.2,0.00833405]
[1645851300589,0.1421,2814.5,2814.2,0.00520184]
[1645851300788,0.4421,2814.5,2814.2,0.00520184]
[1645851300989,0.9649889,2814.5,2814.2,0.00520184]
[1645851301190,0.6649889,2814.5,2814.2,0.00520184]
[1645851301395,0.6649889,2814.5,2813.8,0.00313221]
[1645851301396,0.3545,2814.3,2813.8,0.8838857]
[1645851301589,1.13749277,2814.0,2813.8,0.8838857]
[1645851301796,2.29229277,2814.0,2813.7,0.43005639]
[1645851302000,2.29229277,2814.0,2813.7,0.45086753]
[1645851302596,2.29229277,2814.0,2813.7,0.43005639]
[1645851302796,1.1548,2814.0,2813.7,0.43005639]
[1645851303534,0.3545,2814.0,2813.7,0.43005639]
[1645851303731,0.3545,2814.0,2813.2,7.45]
[1645851303732,11.1745,2813.8,2812.9,0.10313221]
[1645851303938,11.1745,2813.8,2812.3,7.45]
[1645851303939,0.67427541,2813.7,2812.3,7.45]
[1645851304138,0.18390823,2813.9,2813.7,0.00487161]
[1645851304335,0.04180823,2813.9,2813.7,0.00487161]
[1645851304739,0.1421,2813.8,2813.7,0.00487161]
[1645851304939,2.32652267,2813.8,2813.0,7.45]
[1645851305139,0.1421,2813.8,2813.0,7.45]
[1645851305337,3.9421,2813.8,2813.7,0.00487166]
[1645851305537,1.64732475,2813.8,2813.7,0.00487166]
[1645851305738,2.15832475,2813.8,2813.7,0.00487166]
[1645851305938,0.00690924,2813.6,2813.2,0.01948958]
[1645851306139,0.00690924,2813.6,2812.8,0.25]
[1645851306140,0.2138146,2813.4,2812.8,0.25]
[1645851306340,1.0,2813.1,2812.4,0.04263176]
[1645851306541,1.8774,2813.1,2812.4,0.04263176]
[1645851306739,1.8774,2813.1,2812.2,10.95302349]
[1645851307720,1.8774,2813.1,2812.2,11.85302349]
[1645851308725,2.04544409,2813.1,2812.2,11.75302349]
[1645851308925,1.8774,2813.1,2812.2,11.75302349]
[1645851309127,0.8774,2813.1,2812.2,11.75302349]
[1645851309326,4.0744995,2813.2,2812.2,11.75302349]
[1645851309327,1.0,2813.0,2812.2,3.30302349]
[1645851309529,0.3545,2813.0,2812.0,3.3378]
[1645851309728,0.16160258,2813.1,2812.0,2.8378]
[1645851309729,0.3545,2812.8,2812.0,2.8378]
[1645851309928,1.58475479,2812.8,2812.0,2.8378]
[1645851310130,2.58475479,2812.8,2812.0,2.8378]
[1645851310331,1.17760564,2812.3,2811.6,1.53213715]
[1645851310528,3.5,2812.2,2811.6,1.53213715]
[1645851310729,2.29854251,2812.3,2811.6,1.53213715]
[1645851310730,1.0,2811.8,2811.6,1.125]
[1645851310938,0.70891206,2811.8,2811.6,1.125]
[1645851311137,5.27373722,2811.8,2811.6,1.125]
[1645851311340,4.5633,2811.7,2811.6,1.125]
[1645851311539,5.7088,2811.7,2811.6,1.125]
[1645851312741,5.7088,2811.7,2811.6,0.625]
[1645851313944,1.8543,2811.7,2811.6,0.625]
[1645851314147,0.7088,2811.7,2811.6,0.625]
[1645851314450,0.1421,2811.8,2811.6,0.625]
[1645851314451,0.708,2811.8,2811.6,0.625]
[1645851314693,0.1421,2812.4,2811.6,0.625]
[1645851314694,0.7072,2812.3,2811.6,0.625]
[1645851315282,0.7072,2812.2,2811.6,0.625]
[1645851315682,0.7072,2812.2,2812.0,10.0]
[1645851316086,0.7072,2812.1,2812.0,10.0]
[1645851318543,0.1421,2812.6,2812.0,10.0]
[1645851318544,0.7072,2812.6,2812.0,10.0]
[1645851318743,3.5,2812.7,2812.0,10.0]
[1645851318942,0.7072,2812.5,2812.0,10.0]
[1645851319745,0.7072,2812.5,2812.1,0.00339666]